Workbook

Sheet 1.销售金额汇总（自动生成）
A1: 开票年月 | B1: 当月累计开票 （不含税金额） | C1: 截止当月连续12月 累计开票金额 | D1: 其中 | F1: 控制500万内 当月剩余可开额度
D2: 普票 | E2: 专票
A3: 202401 | B3: =SUMIFS('2.销售开票明细（手动填写或粘贴系统导出已开票明细）'!F:F,'2.销售开票明细（手动填写或粘贴系统导出已开票明细）'!C:C,A3) -> 1,133,533.17 | D3: =SUMIFS('2.销售开票明细（手动填写或粘贴系统导出已开票明细）'!F:F,'2.销售开票明细（手动填写或粘贴系统导出已开票明细）'!C:C,A3,'2.销售开票明细（手动填写或粘贴系统导出已开票明细）'!E:E,$D$2) -> 834,431.88 | E3: =SUMIFS('2.销售开票明细（手动填写或粘贴系统导出已开票明细）'!F:F,'2.销售开票明细（手动填写或粘贴系统导出已开票明细）'!C:C,A3,'2.销售开票明细（手动填写或粘贴系统导出已开票明细）'!E:E,$E$2) -> 299,101.29
A4: 202402 | B4: =SUMIFS('2.销售开票明细（手动填写或粘贴系统导出已开票明细）'!F:F,'2.销售开票明细（手动填写或粘贴系统导出已开票明细）'!C:C,A4) -> 213,550.32 | D4: =SUMIFS('2.销售开票明细（手动填写或粘贴系统导出已开票明细）'!F:F,'2.销售开票明细（手动填写或粘贴系统导出已开票明细）'!C:C,A4,'2.销售开票明细（手动填写或粘贴系统导出已开票明细）'!E:E,$D$2) -> 212,992.40 | E4: =SUMIFS('2.销售开票明细（手动填写或粘贴系统导出已开票明细）'!F:F,'2.销售开票明细（手动填写或粘贴系统导出已开票明细）'!C:C,A4,'2.销售开票明细（手动填写或粘贴系统导出已开票明细）'!E:E,$E$2) -> 557.92
A5: 202403 | B5: =SUMIFS('2.销售开票明细（手动填写或粘贴系统导出已开票明细）'!F:F,'2.销售开票明细（手动填写或粘贴系统导出已开票明细）'!C:C,A5) -> 194,125.74 | D5: =SUMIFS('2.销售开票明细（手动填写或粘贴系统导出已开票明细）'!F:F,'2.销售开票明细（手动填写或粘贴系统导出已开票明细）'!C:C,A5,'2.销售开票明细（手动填写或粘贴系统导出已开票明细）'!E:E,$D$2) -> 192,244.55 | E5: =SUMIFS('2.销售开票明细（手动填写或粘贴系统导出已开票明细）'!F:F,'2.销售开票明细（手动填写或粘贴系统导出已开票明细）'!C:C,A5,'2.销售开票明细（手动填写或粘贴系统导出已开票明细）'!E:E,$E$2) -> 1,881.19
A6: 202404 | B6: =SUMIFS('2.销售开票明细（手动填写或粘贴系统导出已开票明细）'!F:F,'2.销售开票明细（手动填写或粘贴系统导出已开票明细）'!C:C,A6) -> 400,032.47 | D6: =SUMIFS('2.销售开票明细（手动填写或粘贴系统导出已开票明细）'!F:F,'2.销售开票明细（手动填写或粘贴系统导出已开票明细）'!C:C,A6,'2.销售开票明细（手动填写或粘贴系统导出已开票明细）'!E:E,$D$2) -> 13,122.77 | E6: =SUMIFS('2.销售开票明细（手动填写或粘贴系统导出已开票明细）'!F:F,'2.销售开票明细（手动填写或粘贴系统导出已开票明细）'!C:C,A6,'2.销售开票明细（手动填写或粘贴系统导出已开票明细）'!E:E,$E$2) -> 386,909.70
A7: 202405 | B7: =SUMIFS('2.销售开票明细（手动填写或粘贴系统导出已开票明细）'!F:F,'2.销售开票明细（手动填写或粘贴系统导出已开票明细）'!C:C,A7) -> 215,148.61 | D7: =SUMIFS('2.销售开票明细（手动填写或粘贴系统导出已开票明细）'!F:F,'2.销售开票明细（手动填写或粘贴系统导出已开票明细）'!C:C,A7,'2.销售开票明细（手动填写或粘贴系统导出已开票明细）'!E:E,$D$2) -> 215,148.61 | E7: =SUMIFS('2.销售开票明细（手动填写或粘贴系统导出已开票明细）'!F:F,'2.销售开票明细（手动填写或粘贴系统导出已开票明细）'!C:C,A7,'2.销售开票明细（手动填写或粘贴系统导出已开票明细）'!E:E,$E$2) -> 0.00
A8: 202406 | B8: =SUMIFS('2.销售开票明细（手动填写或粘贴系统导出已开票明细）'!F:F,'2.销售开票明细（手动填写或粘贴系统导出已开票明细）'!C:C,A8) -> 217,494.05 | D8: =SUMIFS('2.销售开票明细（手动填写或粘贴系统导出已开票明细）'!F:F,'2.销售开票明细（手动填写或粘贴系统导出已开票明细）'!C:C,A8,'2.销售开票明细（手动填写或粘贴系统导出已开票明细）'!E:E,$D$2) -> 217,494.05 | E8: =SUMIFS('2.销售开票明细（手动填写或粘贴系统导出已开票明细）'!F:F,'2.销售开票明细（手动填写或粘贴系统导出已开票明细）'!C:C,A8,'2.销售开票明细（手动填写或粘贴系统导出已开票明细）'!E:E,$E$2) -> 0.00
A9: 202407 | B9: =SUMIFS('2.销售开票明细（手动填写或粘贴系统导出已开票明细）'!F:F,'2.销售开票明细（手动填写或粘贴系统导出已开票明细）'!C:C,A9) -> 326,813.02 | D9: =SUMIFS('2.销售开票明细（手动填写或粘贴系统导出已开票明细）'!F:F,'2.销售开票明细（手动填写或粘贴系统导出已开票明细）'!C:C,A9,'2.销售开票明细（手动填写或粘贴系统导出已开票明细）'!E:E,$D$2) -> 326,813.02 | E9: =SUMIFS('2.销售开票明细（手动填写或粘贴系统导出已开票明细）'!F:F,'2.销售开票明细（手动填写或粘贴系统导出已开票明细）'!C:C,A9,'2.销售开票明细（手动填写或粘贴系统导出已开票明细）'!E:E,$E$2) -> 0.00
A10: 202408 | B10: =SUMIFS('2.销售开票明细（手动填写或粘贴系统导出已开票明细）'!F:F,'2.销售开票明细（手动填写或粘贴系统导出已开票明细）'!C:C,A10) -> 224,141.78 | D10: =SUMIFS('2.销售开票明细（手动填写或粘贴系统导出已开票明细）'!F:F,'2.销售开票明细（手动填写或粘贴系统导出已开票明细）'!C:C,A10,'2.销售开票明细（手动填写或粘贴系统导出已开票明细）'!E:E,$D$2) -> 224,141.78 | E10: =SUMIFS('2.销售开票明细（手动填写或粘贴系统导出已开票明细）'!F:F,'2.销售开票明细（手动填写或粘贴系统导出已开票明细）'!C:C,A10,'2.销售开票明细（手动填写或粘贴系统导出已开票明细）'!E:E,$E$2) -> 0.00
A11: 202409 | B11: =SUMIFS('2.销售开票明细（手动填写或粘贴系统导出已开票明细）'!F:F,'2.销售开票明细（手动填写或粘贴系统导出已开票明细）'!C:C,A11) -> 218,834.75 | D11: =SUMIFS('2.销售开票明细（手动填写或粘贴系统导出已开票明细）'!F:F,'2.销售开票明细（手动填写或粘贴系统导出已开票明细）'!C:C,A11,'2.销售开票明细（手动填写或粘贴系统导出已开票明细）'!E:E,$D$2) -> 218,834.75 | E11: =SUMIFS('2.销售开票明细（手动填写或粘贴系统导出已开票明细）'!F:F,'2.销售开票明细（手动填写或粘贴系统导出已开票明细）'!C:C,A11,'2.销售开票明细（手动填写或粘贴系统导出已开票明细）'!E:E,$E$2) -> 0.00
A12: 202410 | B12: =SUMIFS('2.销售开票明细（手动填写或粘贴系统导出已开票明细）'!F:F,'2.销售开票明细（手动填写或粘贴系统导出已开票明细）'!C:C,A12) -> 303,821.98 | D12: =SUMIFS('2.销售开票明细（手动填写或粘贴系统导出已开票明细）'!F:F,'2.销售开票明细（手动填写或粘贴系统导出已开票明细）'!C:C,A12,'2.销售开票明细（手动填写或粘贴系统导出已开票明细）'!E:E,$D$2) -> 293,648.71 | E12: =SUMIFS('2.销售开票明细（手动填写或粘贴系统导出已开票明细）'!F:F,'2.销售开票明细（手动填写或粘贴系统导出已开票明细）'!C:C,A12,'2.销售开票明细（手动填写或粘贴系统导出已开票明细）'!E:E,$E$2) -> 10,173.27
A13: 202411 | B13: =SUMIFS('2.销售开票明细（手动填写或粘贴系统导出已开票明细）'!F:F,'2.销售开票明细（手动填写或粘贴系统导出已开票明细）'!C:C,A13) -> 417,951.07 | D13: =SUMIFS('2.销售开票明细（手动填写或粘贴系统导出已开票明细）'!F:F,'2.销售开票明细（手动填写或粘贴系统导出已开票明细）'!C:C,A13,'2.销售开票明细（手动填写或粘贴系统导出已开票明细）'!E:E,$D$2) -> 406,366.92 | E13: =SUMIFS('2.销售开票明细（手动填写或粘贴系统导出已开票明细）'!F:F,'2.销售开票明细（手动填写或粘贴系统导出已开票明细）'!C:C,A13,'2.销售开票明细（手动填写或粘贴系统导出已开票明细）'!E:E,$E$2) -> 11,584.15
A14: 202412 | B14: =SUMIFS('2.销售开票明细（手动填写或粘贴系统导出已开票明细）'!F:F,'2.销售开票明细（手动填写或粘贴系统导出已开票明细）'!C:C,A14) -> 326,813.02 | C14: =SUM(B3:B14) -> 4,192,259.98 | D14: =SUMIFS('2.销售开票明细（手动填写或粘贴系统导出已开票明细）'!F:F,'2.销售开票明细（手动填写或粘贴系统导出已开票明细）'!C:C,A14,'2.销售开票明细（手动填写或粘贴系统导出已开票明细）'!E:E,$D$2) -> 326,813.02 | E14: =SUMIFS('2.销售开票明细（手动填写或粘贴系统导出已开票明细）'!F:F,'2.销售开票明细（手动填写或粘贴系统导出已开票明细）'!C:C,A14,'2.销售开票明细（手动填写或粘贴系统导出已开票明细）'!E:E,$E$2) -> 0.00 | F14: =4999999-C14 -> 807,739.02
A15: 202501 | B15: =SUMIFS('2.销售开票明细（手动填写或粘贴系统导出已开票明细）'!F:F,'2.销售开票明细（手动填写或粘贴系统导出已开票明细）'!C:C,A15) -> 5,739.52 | C15: =SUM(B4:B15) -> 3,064,466.33 | D15: =SUMIFS('2.销售开票明细（手动填写或粘贴系统导出已开票明细）'!F:F,'2.销售开票明细（手动填写或粘贴系统导出已开票明细）'!C:C,A15,'2.销售开票明细（手动填写或粘贴系统导出已开票明细）'!E:E,$D$2) -> 4,196.81 | E15: =SUMIFS('2.销售开票明细（手动填写或粘贴系统导出已开票明细）'!F:F,'2.销售开票明细（手动填写或粘贴系统导出已开票明细）'!C:C,A15,'2.销售开票明细（手动填写或粘贴系统导出已开票明细）'!E:E,$E$2) -> 1,542.71 | F15: =4999999-C15 -> 1,935,532.67
A16: 202502 | B16: =SUMIFS('2.销售开票明细（手动填写或粘贴系统导出已开票明细）'!F:F,'2.销售开票明细（手动填写或粘贴系统导出已开票明细）'!C:C,A16) -> 63.31 | C16: =SUM(B5:B16) -> 2,850,979.32 | D16: =SUMIFS('2.销售开票明细（手动填写或粘贴系统导出已开票明细）'!F:F,'2.销售开票明细（手动填写或粘贴系统导出已开票明细）'!C:C,A16,'2.销售开票明细（手动填写或粘贴系统导出已开票明细）'!E:E,$D$2) -> 0.00 | E16: =SUMIFS('2.销售开票明细（手动填写或粘贴系统导出已开票明细）'!F:F,'2.销售开票明细（手动填写或粘贴系统导出已开票明细）'!C:C,A16,'2.销售开票明细（手动填写或粘贴系统导出已开票明细）'!E:E,$E$2) -> 63.31 | F16: 2,149,019.68
A17: 202503 | B17: =SUMIFS('2.销售开票明细（手动填写或粘贴系统导出已开票明细）'!F:F,'2.销售开票明细（手动填写或粘贴系统导出已开票明细）'!C:C,A17) -> 0.00 | C17: 2,656,853.58 | D17: =SUMIFS('2.销售开票明细（手动填写或粘贴系统导出已开票明细）'!F:F,'2.销售开票明细（手动填写或粘贴系统导出已开票明细）'!C:C,A17,'2.销售开票明细（手动填写或粘贴系统导出已开票明细）'!E:E,$D$2) -> 0.00 | E17: =SUMIFS('2.销售开票明细（手动填写或粘贴系统导出已开票明细）'!F:F,'2.销售开票明细（手动填写或粘贴系统导出已开票明细）'!C:C,A17,'2.销售开票明细（手动填写或粘贴系统导出已开票明细）'!E:E,$E$2) -> 0.00 | F17: 2,343,145.42
A18: 202504 | B18: =SUMIFS('2.销售开票明细（手动填写或粘贴系统导出已开票明细）'!F:F,'2.销售开票明细（手动填写或粘贴系统导出已开票明细）'!C:C,A18) -> 0.00 | C18: 2,256,821.11 | D18: =SUMIFS('2.销售开票明细（手动填写或粘贴系统导出已开票明细）'!F:F,'2.销售开票明细（手动填写或粘贴系统导出已开票明细）'!C:C,A18,'2.销售开票明细（手动填写或粘贴系统导出已开票明细）'!E:E,$D$2) -> 0.00 | E18: =SUMIFS('2.销售开票明细（手动填写或粘贴系统导出已开票明细）'!F:F,'2.销售开票明细（手动填写或粘贴系统导出已开票明细）'!C:C,A18,'2.销售开票明细（手动填写或粘贴系统导出已开票明细）'!E:E,$E$2) -> 0.00 | F18: 2,743,177.89
A19: 202505 | B19: =SUMIFS('2.销售开票明细（手动填写或粘贴系统导出已开票明细）'!F:F,'2.销售开票明细（手动填写或粘贴系统导出已开票明细）'!C:C,A19) -> 0.00 | C19: 2,041,672.50 | D19: =SUMIFS('2.销售开票明细（手动填写或粘贴系统导出已开票明细）'!F:F,'2.销售开票明细（手动填写或粘贴系统导出已开票明细）'!C:C,A19,'2.销售开票明细（手动填写或粘贴系统导出已开票明细）'!E:E,$D$2) -> 0.00 | E19: =SUMIFS('2.销售开票明细（手动填写或粘贴系统导出已开票明细）'!F:F,'2.销售开票明细（手动填写或粘贴系统导出已开票明细）'!C:C,A19,'2.销售开票明细（手动填写或粘贴系统导出已开票明细）'!E:E,$E$2) -> 0.00 | F19: 2,958,326.50
A20: 202506 | B20: =SUMIFS('2.销售开票明细（手动填写或粘贴系统导出已开票明细）'!F:F,'2.销售开票明细（手动填写或粘贴系统导出已开票明细）'!C:C,A20) -> 2,459.95 | C20: 1,826,638.40 | D20: =SUMIFS('2.销售开票明细（手动填写或粘贴系统导出已开票明细）'!F:F,'2.销售开票明细（手动填写或粘贴系统导出已开票明细）'!C:C,A20,'2.销售开票明细（手动填写或粘贴系统导出已开票明细）'!E:E,$D$2) -> 2,270.44 | E20: =SUMIFS('2.销售开票明细（手动填写或粘贴系统导出已开票明细）'!F:F,'2.销售开票明细（手动填写或粘贴系统导出已开票明细）'!C:C,A20,'2.销售开票明细（手动填写或粘贴系统导出已开票明细）'!E:E,$E$2) -> 189.51 | F20: 3,173,360.60
A21: 202507 | B21: =SUMIFS('2.销售开票明细（手动填写或粘贴系统导出已开票明细）'!F:F,'2.销售开票明细（手动填写或粘贴系统导出已开票明细）'!C:C,A21) -> 108.51 | C21: 1,499,933.89 | D21: =SUMIFS('2.销售开票明细（手动填写或粘贴系统导出已开票明细）'!F:F,'2.销售开票明细（手动填写或粘贴系统导出已开票明细）'!C:C,A21,'2.销售开票明细（手动填写或粘贴系统导出已开票明细）'!E:E,$D$2) -> 108.51 | E21: =SUMIFS('2.销售开票明细（手动填写或粘贴系统导出已开票明细）'!F:F,'2.销售开票明细（手动填写或粘贴系统导出已开票明细）'!C:C,A21,'2.销售开票明细（手动填写或粘贴系统导出已开票明细）'!E:E,$E$2) -> 0.00 | F21: 3,500,065.11
A22: 202508 | B22: =SUMIFS('2.销售开票明细（手动填写或粘贴系统导出已开票明细）'!F:F,'2.销售开票明细（手动填写或粘贴系统导出已开票明细）'!C:C,A22) -> 68.47 | C22: 1,275,860.58 | D22: =SUMIFS('2.销售开票明细（手动填写或粘贴系统导出已开票明细）'!F:F,'2.销售开票明细（手动填写或粘贴系统导出已开票明细）'!C:C,A22,'2.销售开票明细（手动填写或粘贴系统导出已开票明细）'!E:E,$D$2) -> 68.47 | E22: =SUMIFS('2.销售开票明细（手动填写或粘贴系统导出已开票明细）'!F:F,'2.销售开票明细（手动填写或粘贴系统导出已开票明细）'!C:C,A22,'2.销售开票明细（手动填写或粘贴系统导出已开票明细）'!E:E,$E$2) -> 0.00 | F22: 3,724,138.42
A23: 202509 | B23: =SUMIFS('2.销售开票明细（手动填写或粘贴系统导出已开票明细）'!F:F,'2.销售开票明细（手动填写或粘贴系统导出已开票明细）'!C:C,A23) -> 149.95 | C23: 1,057,175.78 | D23: =SUMIFS('2.销售开票明细（手动填写或粘贴系统导出已开票明细）'!F:F,'2.销售开票明细（手动填写或粘贴系统导出已开票明细）'!C:C,A23,'2.销售开票明细（手动填写或粘贴系统导出已开票明细）'!E:E,$D$2) -> 149.95 | E23: =SUMIFS('2.销售开票明细（手动填写或粘贴系统导出已开票明细）'!F:F,'2.销售开票明细（手动填写或粘贴系统导出已开票明细）'!C:C,A23,'2.销售开票明细（手动填写或粘贴系统导出已开票明细）'!E:E,$E$2) -> 0.00 | F23: 3,942,823.22
A24: 202510 | B24: =SUMIFS('2.销售开票明细（手动填写或粘贴系统导出已开票明细）'!F:F,'2.销售开票明细（手动填写或粘贴系统导出已开票明细）'!C:C,A24) -> 104.47 | C24: 753,458.27 | D24: =SUMIFS('2.销售开票明细（手动填写或粘贴系统导出已开票明细）'!F:F,'2.销售开票明细（手动填写或粘贴系统导出已开票明细）'!C:C,A24,'2.销售开票明细（手动填写或粘贴系统导出已开票明细）'!E:E,$D$2) -> 104.47 | E24: =SUMIFS('2.销售开票明细（手动填写或粘贴系统导出已开票明细）'!F:F,'2.销售开票明细（手动填写或粘贴系统导出已开票明细）'!C:C,A24,'2.销售开票明细（手动填写或粘贴系统导出已开票明细）'!E:E,$E$2) -> 0.00 | F24: 4,246,540.73
A25: 202511 | B25: =SUMIFS('2.销售开票明细（手动填写或粘贴系统导出已开票明细）'!F:F,'2.销售开票明细（手动填写或粘贴系统导出已开票明细）'!C:C,A25) -> 1,929.55 | C25: 337,436.75 | D25: =SUMIFS('2.销售开票明细（手动填写或粘贴系统导出已开票明细）'!F:F,'2.销售开票明细（手动填写或粘贴系统导出已开票明细）'!C:C,A25,'2.销售开票明细（手动填写或粘贴系统导出已开票明细）'!E:E,$D$2) -> 1,870.71 | E25: =SUMIFS('2.销售开票明细（手动填写或粘贴系统导出已开票明细）'!F:F,'2.销售开票明细（手动填写或粘贴系统导出已开票明细）'!C:C,A25,'2.销售开票明细（手动填写或粘贴系统导出已开票明细）'!E:E,$E$2) -> 58.84 | F25: 4,662,562.25
A26: 202601 | B26: =SUMIFS('2.销售开票明细（手动填写或粘贴系统导出已开票明细）'!F:F,'2.销售开票明细（手动填写或粘贴系统导出已开票明细）'!C:C,A26) -> 6,666.66 | C26: 17,290.39 | D26: =SUMIFS('2.销售开票明细（手动填写或粘贴系统导出已开票明细）'!F:F,'2.销售开票明细（手动填写或粘贴系统导出已开票明细）'!C:C,A26,'2.销售开票明细（手动填写或粘贴系统导出已开票明细）'!E:E,$D$2) -> 6,666.66 | E26: =SUMIFS('2.销售开票明细（手动填写或粘贴系统导出已开票明细）'!F:F,'2.销售开票明细（手动填写或粘贴系统导出已开票明细）'!C:C,A26,'2.销售开票明细（手动填写或粘贴系统导出已开票明细）'!E:E,$E$2) -> 0.00 | F26: 4,982,708.61
A27: 202602 | B27: =SUMIFS('2.销售开票明细（手动填写或粘贴系统导出已开票明细）'!F:F,'2.销售开票明细（手动填写或粘贴系统导出已开票明细）'!C:C,A27) -> 0.00 | C27: 11,550.87 | D27: =SUMIFS('2.销售开票明细（手动填写或粘贴系统导出已开票明细）'!F:F,'2.销售开票明细（手动填写或粘贴系统导出已开票明细）'!C:C,A27,'2.销售开票明细（手动填写或粘贴系统导出已开票明细）'!E:E,$D$2) -> 0.00 | E27: =SUMIFS('2.销售开票明细（手动填写或粘贴系统导出已开票明细）'!F:F,'2.销售开票明细（手动填写或粘贴系统导出已开票明细）'!C:C,A27,'2.销售开票明细（手动填写或粘贴系统导出已开票明细）'!E:E,$E$2) -> 0.00 | F27: 4,988,448.13
A28: 202603 | B28: =SUMIFS('2.销售开票明细（手动填写或粘贴系统导出已开票明细）'!F:F,'2.销售开票明细（手动填写或粘贴系统导出已开票明细）'!C:C,A28) -> 0.00 | C28: 11,487.56 | D28: =SUMIFS('2.销售开票明细（手动填写或粘贴系统导出已开票明细）'!F:F,'2.销售开票明细（手动填写或粘贴系统导出已开票明细）'!C:C,A28,'2.销售开票明细（手动填写或粘贴系统导出已开票明细）'!E:E,$D$2) -> 0.00 | E28: =SUMIFS('2.销售开票明细（手动填写或粘贴系统导出已开票明细）'!F:F,'2.销售开票明细（手动填写或粘贴系统导出已开票明细）'!C:C,A28,'2.销售开票明细（手动填写或粘贴系统导出已开票明细）'!E:E,$E$2) -> 0.00 | F28: 4,988,511.44
A29: 202604 | B29: =SUMIFS('2.销售开票明细（手动填写或粘贴系统导出已开票明细）'!F:F,'2.销售开票明细（手动填写或粘贴系统导出已开票明细）'!C:C,A29) -> 0.00 | C29: =SUM(B18:B29) -> 11,487.56 | D29: =SUMIFS('2.销售开票明细（手动填写或粘贴系统导出已开票明细）'!F:F,'2.销售开票明细（手动填写或粘贴系统导出已开票明细）'!C:C,A29,'2.销售开票明细（手动填写或粘贴系统导出已开票明细）'!E:E,$D$2) -> 0.00 | E29: =SUMIFS('2.销售开票明细（手动填写或粘贴系统导出已开票明细）'!F:F,'2.销售开票明细（手动填写或粘贴系统导出已开票明细）'!C:C,A29,'2.销售开票明细（手动填写或粘贴系统导出已开票明细）'!E:E,$E$2) -> 0.00 | F29: 4,988,511.44
A30: 202605 | B30: =SUMIFS('2.销售开票明细（手动填写或粘贴系统导出已开票明细）'!F:F,'2.销售开票明细（手动填写或粘贴系统导出已开票明细）'!C:C,A30) -> 0.00 | C30: 11,487.56 | D30: =SUMIFS('2.销售开票明细（手动填写或粘贴系统导出已开票明细）'!F:F,'2.销售开票明细（手动填写或粘贴系统导出已开票明细）'!C:C,A30,'2.销售开票明细（手动填写或粘贴系统导出已开票明细）'!E:E,$D$2) -> 0.00 | E30: =SUMIFS('2.销售开票明细（手动填写或粘贴系统导出已开票明细）'!F:F,'2.销售开票明细（手动填写或粘贴系统导出已开票明细）'!C:C,A30,'2.销售开票明细（手动填写或粘贴系统导出已开票明细）'!E:E,$E$2) -> 0.00 | F30: 4,988,511.44
A31: 202606 | B31: =SUMIFS('2.销售开票明细（手动填写或粘贴系统导出已开票明细）'!F:F,'2.销售开票明细（手动填写或粘贴系统导出已开票明细）'!C:C,A31) -> 0.00 | C31: 11,487.56 | D31: =SUMIFS('2.销售开票明细（手动填写或粘贴系统导出已开票明细）'!F:F,'2.销售开票明细（手动填写或粘贴系统导出已开票明细）'!C:C,A31,'2.销售开票明细（手动填写或粘贴系统导出已开票明细）'!E:E,$D$2) -> 0.00 | E31: =SUMIFS('2.销售开票明细（手动填写或粘贴系统导出已开票明细）'!F:F,'2.销售开票明细（手动填写或粘贴系统导出已开票明细）'!C:C,A31,'2.销售开票明细（手动填写或粘贴系统导出已开票明细）'!E:E,$E$2) -> 0.00 | F31: 4,988,511.44
A32: 202607 | B32: =SUMIFS('2.销售开票明细（手动填写或粘贴系统导出已开票明细）'!F:F,'2.销售开票明细（手动填写或粘贴系统导出已开票明细）'!C:C,A32) -> 0.00 | C32: 9,027.61 | D32: =SUMIFS('2.销售开票明细（手动填写或粘贴系统导出已开票明细）'!F:F,'2.销售开票明细（手动填写或粘贴系统导出已开票明细）'!C:C,A32,'2.销售开票明细（手动填写或粘贴系统导出已开票明细）'!E:E,$D$2) -> 0.00 | E32: =SUMIFS('2.销售开票明细（手动填写或粘贴系统导出已开票明细）'!F:F,'2.销售开票明细（手动填写或粘贴系统导出已开票明细）'!C:C,A32,'2.销售开票明细（手动填写或粘贴系统导出已开票明细）'!E:E,$E$2) -> 0.00 | F32: 4,990,971.39
A33: 202608 | B33: =SUMIFS('2.销售开票明细（手动填写或粘贴系统导出已开票明细）'!F:F,'2.销售开票明细（手动填写或粘贴系统导出已开票明细）'!C:C,A33) -> 0.00 | C33: 8,919.10 | D33: =SUMIFS('2.销售开票明细（手动填写或粘贴系统导出已开票明细）'!F:F,'2.销售开票明细（手动填写或粘贴系统导出已开票明细）'!C:C,A33,'2.销售开票明细（手动填写或粘贴系统导出已开票明细）'!E:E,$D$2) -> 0.00 | E33: =SUMIFS('2.销售开票明细（手动填写或粘贴系统导出已开票明细）'!F:F,'2.销售开票明细（手动填写或粘贴系统导出已开票明细）'!C:C,A33,'2.销售开票明细（手动填写或粘贴系统导出已开票明细）'!E:E,$E$2) -> 0.00 | F33: 4,991,079.90
A34: 202609 | B34: =SUMIFS('2.销售开票明细（手动填写或粘贴系统导出已开票明细）'!F:F,'2.销售开票明细（手动填写或粘贴系统导出已开票明细）'!C:C,A34) -> 0.00 | C34: 8,850.63 | D34: =SUMIFS('2.销售开票明细（手动填写或粘贴系统导出已开票明细）'!F:F,'2.销售开票明细（手动填写或粘贴系统导出已开票明细）'!C:C,A34,'2.销售开票明细（手动填写或粘贴系统导出已开票明细）'!E:E,$D$2) -> 0.00 | E34: =SUMIFS('2.销售开票明细（手动填写或粘贴系统导出已开票明细）'!F:F,'2.销售开票明细（手动填写或粘贴系统导出已开票明细）'!C:C,A34,'2.销售开票明细（手动填写或粘贴系统导出已开票明细）'!E:E,$E$2) -> 0.00 | F34: 4,991,148.37
A35: 202610 | B35: =SUMIFS('2.销售开票明细（手动填写或粘贴系统导出已开票明细）'!F:F,'2.销售开票明细（手动填写或粘贴系统导出已开票明细）'!C:C,A35) -> 0.00 | C35: 8,700.68 | D35: =SUMIFS('2.销售开票明细（手动填写或粘贴系统导出已开票明细）'!F:F,'2.销售开票明细（手动填写或粘贴系统导出已开票明细）'!C:C,A35,'2.销售开票明细（手动填写或粘贴系统导出已开票明细）'!E:E,$D$2) -> 0.00 | E35: =SUMIFS('2.销售开票明细（手动填写或粘贴系统导出已开票明细）'!F:F,'2.销售开票明细（手动填写或粘贴系统导出已开票明细）'!C:C,A35,'2.销售开票明细（手动填写或粘贴系统导出已开票明细）'!E:E,$E$2) -> 0.00 | F35: 4,991,298.32
A36: 202611 | B36: =SUMIFS('2.销售开票明细（手动填写或粘贴系统导出已开票明细）'!F:F,'2.销售开票明细（手动填写或粘贴系统导出已开票明细）'!C:C,A36) -> 0.00 | C36: 8,596.21 | D36: =SUMIFS('2.销售开票明细（手动填写或粘贴系统导出已开票明细）'!F:F,'2.销售开票明细（手动填写或粘贴系统导出已开票明细）'!C:C,A36,'2.销售开票明细（手动填写或粘贴系统导出已开票明细）'!E:E,$D$2) -> 0.00 | E36: =SUMIFS('2.销售开票明细（手动填写或粘贴系统导出已开票明细）'!F:F,'2.销售开票明细（手动填写或粘贴系统导出已开票明细）'!C:C,A36,'2.销售开票明细（手动填写或粘贴系统导出已开票明细）'!E:E,$E$2) -> 0.00 | F36: 4,991,402.79
A37: 202612 | B37: =SUMIFS('2.销售开票明细（手动填写或粘贴系统导出已开票明细）'!F:F,'2.销售开票明细（手动填写或粘贴系统导出已开票明细）'!C:C,A37) -> 0.00 | C37: 6,666.66 | D37: =SUMIFS('2.销售开票明细（手动填写或粘贴系统导出已开票明细）'!F:F,'2.销售开票明细（手动填写或粘贴系统导出已开票明细）'!C:C,A37,'2.销售开票明细（手动填写或粘贴系统导出已开票明细）'!E:E,$D$2) -> 0.00 | E37: =SUMIFS('2.销售开票明细（手动填写或粘贴系统导出已开票明细）'!F:F,'2.销售开票明细（手动填写或粘贴系统导出已开票明细）'!C:C,A37,'2.销售开票明细（手动填写或粘贴系统导出已开票明细）'!E:E,$E$2) -> 0.00 | F37: 4,993,332.34
A38: 202701 | B38: =SUMIFS('2.销售开票明细（手动填写或粘贴系统导出已开票明细）'!F:F,'2.销售开票明细（手动填写或粘贴系统导出已开票明细）'!C:C,A38) -> 0.00 | C38: 0.00 | D38: =SUMIFS('2.销售开票明细（手动填写或粘贴系统导出已开票明细）'!F:F,'2.销售开票明细（手动填写或粘贴系统导出已开票明细）'!C:C,A38,'2.销售开票明细（手动填写或粘贴系统导出已开票明细）'!E:E,$D$2) -> 0.00 | E38: =SUMIFS('2.销售开票明细（手动填写或粘贴系统导出已开票明细）'!F:F,'2.销售开票明细（手动填写或粘贴系统导出已开票明细）'!C:C,A38,'2.销售开票明细（手动填写或粘贴系统导出已开票明细）'!E:E,$E$2) -> 0.00 | F38: 4,999,999.00
A39: 202702 | B39: =SUMIFS('2.销售开票明细（手动填写或粘贴系统导出已开票明细）'!F:F,'2.销售开票明细（手动填写或粘贴系统导出已开票明细）'!C:C,A39) -> 0.00 | C39: 0.00 | D39: =SUMIFS('2.销售开票明细（手动填写或粘贴系统导出已开票明细）'!F:F,'2.销售开票明细（手动填写或粘贴系统导出已开票明细）'!C:C,A39,'2.销售开票明细（手动填写或粘贴系统导出已开票明细）'!E:E,$D$2) -> 0.00 | E39: =SUMIFS('2.销售开票明细（手动填写或粘贴系统导出已开票明细）'!F:F,'2.销售开票明细（手动填写或粘贴系统导出已开票明细）'!C:C,A39,'2.销售开票明细（手动填写或粘贴系统导出已开票明细）'!E:E,$E$2) -> 0.00 | F39: 4,999,999.00
A40: 202703 | B40: =SUMIFS('2.销售开票明细（手动填写或粘贴系统导出已开票明细）'!F:F,'2.销售开票明细（手动填写或粘贴系统导出已开票明细）'!C:C,A40) -> 0.00 | C40: 0.00 | D40: =SUMIFS('2.销售开票明细（手动填写或粘贴系统导出已开票明细）'!F:F,'2.销售开票明细（手动填写或粘贴系统导出已开票明细）'!C:C,A40,'2.销售开票明细（手动填写或粘贴系统导出已开票明细）'!E:E,$D$2) -> 0.00 | E40: =SUMIFS('2.销售开票明细（手动填写或粘贴系统导出已开票明细）'!F:F,'2.销售开票明细（手动填写或粘贴系统导出已开票明细）'!C:C,A40,'2.销售开票明细（手动填写或粘贴系统导出已开票明细）'!E:E,$E$2) -> 0.00 | F40: 4,999,999.00
A41: 202704 | B41: =SUMIFS('2.销售开票明细（手动填写或粘贴系统导出已开票明细）'!F:F,'2.销售开票明细（手动填写或粘贴系统导出已开票明细）'!C:C,A41) -> 0.00 | C41: 0.00 | D41: =SUMIFS('2.销售开票明细（手动填写或粘贴系统导出已开票明细）'!F:F,'2.销售开票明细（手动填写或粘贴系统导出已开票明细）'!C:C,A41,'2.销售开票明细（手动填写或粘贴系统导出已开票明细）'!E:E,$D$2) -> 0.00 | E41: =SUMIFS('2.销售开票明细（手动填写或粘贴系统导出已开票明细）'!F:F,'2.销售开票明细（手动填写或粘贴系统导出已开票明细）'!C:C,A41,'2.销售开票明细（手动填写或粘贴系统导出已开票明细）'!E:E,$E$2) -> 0.00 | F41: 4,999,999.00
A42: 202705 | B42: =SUMIFS('2.销售开票明细（手动填写或粘贴系统导出已开票明细）'!F:F,'2.销售开票明细（手动填写或粘贴系统导出已开票明细）'!C:C,A42) -> 0.00 | C42: 0.00 | D42: =SUMIFS('2.销售开票明细（手动填写或粘贴系统导出已开票明细）'!F:F,'2.销售开票明细（手动填写或粘贴系统导出已开票明细）'!C:C,A42,'2.销售开票明细（手动填写或粘贴系统导出已开票明细）'!E:E,$D$2) -> 0.00 | E42: =SUMIFS('2.销售开票明细（手动填写或粘贴系统导出已开票明细）'!F:F,'2.销售开票明细（手动填写或粘贴系统导出已开票明细）'!C:C,A42,'2.销售开票明细（手动填写或粘贴系统导出已开票明细）'!E:E,$E$2) -> 0.00 | F42: 4,999,999.00
A43: 202706 | B43: =SUMIFS('2.销售开票明细（手动填写或粘贴系统导出已开票明细）'!F:F,'2.销售开票明细（手动填写或粘贴系统导出已开票明细）'!C:C,A43) -> 0.00 | C43: =SUM(B32:B43) -> 0.00 | D43: =SUMIFS('2.销售开票明细（手动填写或粘贴系统导出已开票明细）'!F:F,'2.销售开票明细（手动填写或粘贴系统导出已开票明细）'!C:C,A43,'2.销售开票明细（手动填写或粘贴系统导出已开票明细）'!E:E,$D$2) -> 0.00 | E43: =SUMIFS('2.销售开票明细（手动填写或粘贴系统导出已开票明细）'!F:F,'2.销售开票明细（手动填写或粘贴系统导出已开票明细）'!C:C,A43,'2.销售开票明细（手动填写或粘贴系统导出已开票明细）'!E:E,$E$2) -> 0.00 | F43: =4999999-C43 -> 4,999,999.00
A44: 202707 | B44: =SUMIFS('2.销售开票明细（手动填写或粘贴系统导出已开票明细）'!F:F,'2.销售开票明细（手动填写或粘贴系统导出已开票明细）'!C:C,A44) -> 0.00 | C44: 0.00 | D44: =SUMIFS('2.销售开票明细（手动填写或粘贴系统导出已开票明细）'!F:F,'2.销售开票明细（手动填写或粘贴系统导出已开票明细）'!C:C,A44,'2.销售开票明细（手动填写或粘贴系统导出已开票明细）'!E:E,$D$2) -> 0.00 | E44: =SUMIFS('2.销售开票明细（手动填写或粘贴系统导出已开票明细）'!F:F,'2.销售开票明细（手动填写或粘贴系统导出已开票明细）'!C:C,A44,'2.销售开票明细（手动填写或粘贴系统导出已开票明细）'!E:E,$E$2) -> 0.00 | F44: 4,999,999.00
A45: 202708 | B45: =SUMIFS('2.销售开票明细（手动填写或粘贴系统导出已开票明细）'!F:F,'2.销售开票明细（手动填写或粘贴系统导出已开票明细）'!C:C,A45) -> 0.00 | C45: 0.00 | D45: =SUMIFS('2.销售开票明细（手动填写或粘贴系统导出已开票明细）'!F:F,'2.销售开票明细（手动填写或粘贴系统导出已开票明细）'!C:C,A45,'2.销售开票明细（手动填写或粘贴系统导出已开票明细）'!E:E,$D$2) -> 0.00 | E45: =SUMIFS('2.销售开票明细（手动填写或粘贴系统导出已开票明细）'!F:F,'2.销售开票明细（手动填写或粘贴系统导出已开票明细）'!C:C,A45,'2.销售开票明细（手动填写或粘贴系统导出已开票明细）'!E:E,$E$2) -> 0.00 | F45: 4,999,999.00
A46: 202709 | B46: =SUMIFS('2.销售开票明细（手动填写或粘贴系统导出已开票明细）'!F:F,'2.销售开票明细（手动填写或粘贴系统导出已开票明细）'!C:C,A46) -> 0.00 | C46: 0.00 | D46: =SUMIFS('2.销售开票明细（手动填写或粘贴系统导出已开票明细）'!F:F,'2.销售开票明细（手动填写或粘贴系统导出已开票明细）'!C:C,A46,'2.销售开票明细（手动填写或粘贴系统导出已开票明细）'!E:E,$D$2) -> 0.00 | E46: =SUMIFS('2.销售开票明细（手动填写或粘贴系统导出已开票明细）'!F:F,'2.销售开票明细（手动填写或粘贴系统导出已开票明细）'!C:C,A46,'2.销售开票明细（手动填写或粘贴系统导出已开票明细）'!E:E,$E$2) -> 0.00 | F46: 4,999,999.00
A47: 202710 | B47: =SUMIFS('2.销售开票明细（手动填写或粘贴系统导出已开票明细）'!F:F,'2.销售开票明细（手动填写或粘贴系统导出已开票明细）'!C:C,A47) -> 0.00 | C47: 0.00 | D47: =SUMIFS('2.销售开票明细（手动填写或粘贴系统导出已开票明细）'!F:F,'2.销售开票明细（手动填写或粘贴系统导出已开票明细）'!C:C,A47,'2.销售开票明细（手动填写或粘贴系统导出已开票明细）'!E:E,$D$2) -> 0.00 | E47: =SUMIFS('2.销售开票明细（手动填写或粘贴系统导出已开票明细）'!F:F,'2.销售开票明细（手动填写或粘贴系统导出已开票明细）'!C:C,A47,'2.销售开票明细（手动填写或粘贴系统导出已开票明细）'!E:E,$E$2) -> 0.00 | F47: 4,999,999.00
A48: 202711 | B48: =SUMIFS('2.销售开票明细（手动填写或粘贴系统导出已开票明细）'!F:F,'2.销售开票明细（手动填写或粘贴系统导出已开票明细）'!C:C,A48) -> 0.00 | C48: 0.00 | D48: =SUMIFS('2.销售开票明细（手动填写或粘贴系统导出已开票明细）'!F:F,'2.销售开票明细（手动填写或粘贴系统导出已开票明细）'!C:C,A48,'2.销售开票明细（手动填写或粘贴系统导出已开票明细）'!E:E,$D$2) -> 0.00 | E48: =SUMIFS('2.销售开票明细（手动填写或粘贴系统导出已开票明细）'!F:F,'2.销售开票明细（手动填写或粘贴系统导出已开票明细）'!C:C,A48,'2.销售开票明细（手动填写或粘贴系统导出已开票明细）'!E:E,$E$2) -> 0.00 | F48: 4,999,999.00
A49: 202712 | B49: =SUMIFS('2.销售开票明细（手动填写或粘贴系统导出已开票明细）'!F:F,'2.销售开票明细（手动填写或粘贴系统导出已开票明细）'!C:C,A49) -> 0.00 | C49: 0.00 | D49: =SUMIFS('2.销售开票明细（手动填写或粘贴系统导出已开票明细）'!F:F,'2.销售开票明细（手动填写或粘贴系统导出已开票明细）'!C:C,A49,'2.销售开票明细（手动填写或粘贴系统导出已开票明细）'!E:E,$D$2) -> 0.00 | E49: =SUMIFS('2.销售开票明细（手动填写或粘贴系统导出已开票明细）'!F:F,'2.销售开票明细（手动填写或粘贴系统导出已开票明细）'!C:C,A49,'2.销售开票明细（手动填写或粘贴系统导出已开票明细）'!E:E,$E$2) -> 0.00 | F49: 4,999,999.00
F50: .
A51: 202801 | B51: 下拉 | C51: 下拉 | D51: 下拉 | E51: 下拉 | F51: 下拉
A52: .
A53: .

Sheet 0.填表说明
A1: 说 明
B2: 表1 | C2: 1.销售金额汇总 | D2: （自动生成，不用修改）
B3: 表2 | C3: 2.销售开票明细 | D3: （手动填写或粘贴系统导出已开票明细）
B4: 特别说明 | C4: 未开票收入也计算到对应月份销售收入之中
B6: 交流学习 | C6: 1933899955 | D6: 0839-3600200
B7: 政策要求：

Sheet 2.销售开票明细（手动填写或粘贴系统导出已开票明细）
A1: 序号 | B1: 开票时间 | C1: 开票年月 | D1: 客户名称 | E1: 发票类型 | F1: 不含税金额 | G1: 税率 | H1: 税额 | I1: 价税合计 | J1: 备注 | K1: 发票号
A2: 1 | B2: 2024-01-04 | C2: 202401 | D2: 广元市***有限公司 | E2: 普票 | F2: 394,442.57 | G2: 1% | H2: =+F2*0.01 -> 3,944.43 | I2: =+H2+F2 -> 398,387.00
A3: 2 | B3: 2024-01-04 | C3: 202401 | D3: 四川*****有限公司 | E3: 普票 | F3: 217,701.88 | G3: 1% | H3: =+F3*0.01 -> 2,177.02 | I3: =+H3+F3 -> 219,878.90
A4: 3 | B4: 2024-01-12 | C4: 202401 | D4: 四川*****有限公司 | E4: 专票 | F4: 299,101.29 | G4: 1% | H4: 2,991.01 | I4: 302,092.30
A5: 4 | B5: 2024-01-12 | C5: 202401 | D5: 四川*****有限公司 | E5: 普票 | F5: 219,589.41 | G5: 1% | H5: 2,195.89 | I5: 221,785.30 | M5: 蓝色 | N5: 必填项
A6: 5 | B6: 2024-01-26 | C6: 202401 | D6: 广元市***有限公司 | E6: 普票 | F6: 1,707.92 | G6: 1% | H6: 17.08 | I6: 1,725.00 | M6: 红色 | N6: 注意项
A7: 6 | B7: 2024-01-26 | C7: 202401 | D7: 四川*****有限公司 | E7: 普票 | F7: 990.10 | G7: 1% | H7: 9.90 | I7: 1,000.00
A8: 7 | B8: 2024-02-20 | C8: 202402 | D8: 广元市***有限公司 | E8: 专票 | F8: 557.92 | G8: 1% | H8: 5.58 | I8: 563.50
A9: 8 | B9: 2024-02-28 | C9: 202402 | D9: 广元市***有限公司 | E9: 普票 | F9: 212,992.40 | G9: 1% | H9: 2,129.92 | I9: 215,122.32
A10: 9 | B10: 2024-03-01 | C10: 202403 | D10: 广元市***有限公司 | E10: 普票 | F10: 190,907.92 | G10: 1% | H10: 1,909.08 | I10: 192,817.00
A11: 10 | B11: 2024-03-01 | C11: 202403 | D11: 四川*****有限公司 | E11: 专票 | F11: 1,881.19 | G11: 1% | H11: 18.81 | I11: 1,900.00
A12: 11 | B12: 2024-03-01 | C12: 202403 | D12: 广元市***有限公司 | E12: 普票 | F12: 1,336.63 | G12: 1% | H12: 13.37 | I12: 1,350.00
A13: 12 | B13: 2024-04-08 | C13: 202404 | D13: 广元市***有限公司 | E13: 普票 | F13: 10,039.60 | G13: 1% | H13: 100.40 | I13: 10,140.00
A14: 13 | B14: 2024-04-08 | C14: 202404 | D14: 广元市***有限公司 | E14: 专票 | F14: 831.68 | G14: 1% | H14: 8.32 | I14: 840.00
A15: 14 | B15: 2024-04-08 | C15: 202404 | D15: 四川*****有限公司 | E15: 专票 | F15: 384,794.85 | G15: 1% | H15: 3,847.95 | I15: 388,642.80
A16: 15 | B16: 2024-04-08 | C16: 202404 | D16: 广元市***有限公司 | E16: 普票 | F16: 2,013.86 | G16: 1% | H16: 20.14 | I16: 2,034.00
A17: 16 | B17: 2024-04-26 | C17: 202404 | D17: 广元市***有限公司 | E17: 专票 | F17: 1,283.17 | G17: 1% | H17: 12.83 | I17: 1,296.00
A18: 17 | B18: 2024-04-30 | C18: 202404 | D18: 广元市***有限公司 | E18: 普票 | F18: 1,069.31 | G18: 1% | H18: 10.69 | I18: 1,080.00
A19: 18 | B19: 2024-05-08 | C19: 202405 | D19: 广元市***有限公司 | E19: 普票 | F19: 212,016.93 | G19: 1% | H19: 2,120.17 | I19: 214,137.10
A20: 19 | B20: 2024-05-08 | C20: 202405 | D20: 广元市***有限公司 | E20: 普票 | F20: 980.20 | G20: 1% | H20: 9.80 | I20: 990.00
A21: 20 | B21: 2024-05-17 | C21: 202405 | D21: 广元市***有限公司 | E21: 普票 | F21: 691.08 | G21: 1% | H21: 6.91 | I21: 697.99
A22: 21 | B22: 2024-05-29 | C22: 202405 | D22: 广元市***有限公司 | E22: 普票 | F22: 594.06 | G22: 1% | H22: 5.94 | I22: 600.00
A23: 22 | B23: 2024-05-29 | C23: 202405 | D23: 广元市***有限公司 | E23: 普票 | F23: 866.34 | G23: 1% | H23: 8.66 | I23: 875.00
A24: 23 | B24: 2024-06-03 | C24: 202406 | D24: 广元市***有限公司 | E24: 普票 | F24: 217,494.05 | G24: 1% | H24: 2,174.94 | I24: 219,668.99
A25: 24 | B25: 2024-07-09 | C25: 202407 | D25: 广元市***有限公司 | E25: 普票 | F25: 326,813.02 | G25: 1% | H25: 3,268.13 | I25: 330,081.15
A26: 25 | B26: 2024-08-07 | C26: 202408 | D26: 广元市***有限公司 | E26: 普票 | F26: 224,141.78 | G26: 1% | H26: 2,241.42 | I26: 226,383.20
A27: 26 | B27: 2024-09-05 | C27: 202409 | D27: 广元市***有限公司 | E27: 普票 | F27: 218,834.75 | G27: 1% | H27: 2,188.35 | I27: 221,023.10
A28: 27 | B28: 2024-10-08T15:43:27 | C28: 202410 | D28: 广元市***有限公司 | E28: 普票 | F28: 293,648.71 | G28: 1% | H28: 2,936.49 | I28: 296,585.20
A29: 28 | B29: 2024-10-14T09:37:19 | C29: 202410 | D29: 广元市***有限公司 | E29: 专票 | F29: 1,262.38 | G29: 1% | H29: 12.62 | I29: 1,275.00
A30: 29 | B30: 2024-10-28T10:51:44 | C30: 202410 | D30: 广元市***有限公司 | E30: 专票 | F30: 8,910.89 | G30: 1% | H30: 89.11 | I30: 9,000.00
A31: 30 | B31: 2024-11-04T08:38:08 | C31: 202411 | D31: 四川*****有限公司 | E31: 普票 | F31: 186,595.64 | G31: 1% | H31: 1,865.96 | I31: 188,461.60
A32: 31 | B32: 2024-11-19T11:42:15 | C32: 202411 | D32: 广元市***有限公司 | E32: 专票 | F32: 5,643.56 | G32: 1% | H32: 56.44 | I32: 5,700.00
A33: 32 | B33: 2024-11-20T14:32:22 | C33: 202411 | D33: 广元市***有限公司 | E33: 专票 | F33: 5,940.59 | G33: 1% | H33: 59.41 | I33: 6,000.00
A34: 33 | B34: 2024-11-20T14:33:44 | C34: 202411 | D34: 广元市***有限公司 | E34: 普票 | F34: 2,277.23 | G34: 1% | H34: 22.77 | I34: 2,300.00
A35: 34 | B35: 2024-11-21T15:16:51 | C35: 202411 | D35: 广元市***有限公司 | E35: 普票 | F35: 217,494.05 | G35: 1% | H35: 2,174.94 | I35: =+H35+F35 -> 219,668.99
A36: 35 | B36: 2024-12-19T09:49:47 | C36: 202412 | D36: 广元市***有限公司 | E36: 普票 | F36: 326,813.02 | G36: 1% | H36: 3,268.13 | I36: 330,081.15
A37: 36 | B37: 2025-01-02T16:04:13 | C37: 202501 | D37: 四川*****有限公司 | E37: 专票 | F37: 1,457.47 | G37: 1% | H37: 14.57 | I37: 1,472.04
A38: 37 | B38: 2025-01-02T16:17:50 | C38: 202501 | D38: 广元市***有限公司 | E38: 普票 | F38: 1,079.60 | G38: 1% | H38: 10.80 | I38: 1,090.40
A39: 38 | B39: 2025-01-09T17:48:20 | C39: 202501 | D39: 广元市***有限公司 | E39: 普票 | F39: 90.40 | G39: 1% | H39: 0.90 | I39: 91.30
A40: 39 | B40: 2025-01-10T09:49:55 | C40: 202501 | D40: 广元市***有限公司 | E40: 普票 | F40: 2,014.69 | G40: 1% | H40: 20.15 | I40: 2,034.84
A41: 40 | B41: 2025-01-13T09:52:25 | C41: 202501 | D41: 广元市***有限公司 | E41: 普票 | F41: 50.62 | G41: 1% | H41: 0.51 | I41: 51.13
A42: 41 | B42: 2025-01-13T09:53:17 | C42: 202501 | D42: 四川*****有限公司 | E42: 普票 | F42: 433.90 | G42: 1% | H42: 4.34 | I42: 438.24
A43: 42 | B43: 2025-01-16T09:58:09 | C43: 202501 | D43: 四川*****有限公司 | E43: 专票 | F43: 23.26 | G43: 1% | H43: 0.23 | I43: 23.49
A44: 43 | B44: 2025-01-16T09:58:32 | C44: 202501 | D44: 广元市***有限公司 | E44: 普票 | F44: 309.98 | G44: 1% | H44: 3.10 | I44: 313.08
A45: 44 | B45: 2025-01-16T09:59:50 | C45: 202501 | D45: 广元市***有限公司 | E45: 普票 | F45: 86.77 | G45: 1% | H45: =+F45*0.01 -> 0.87 | I45: 87.64
A46: 45 | B46: 2025-01-16T10:00:32 | C46: 202501 | D46: 广元市***有限公司 | E46: 专票 | F46: 61.98 | G46: 1% | H46: 0.62 | I46: 62.60
A47: 46 | B47: 2025-01-16T10:01:13 | C47: 202501 | D47: 广元市***有限公司 | E47: 普票 | F47: 130.85 | G47: 1% | H47: 1.31 | I47: 132.16
A48: 47 | B48: 2025-02-10T10:06:37 | C48: 202502 | D48: 广元市***有限公司 | E48: 专票 | F48: 46.51 | G48: 1% | H48: 0.47 | I48: 46.98
A49: 48 | B49: 2025-02-11T08:37:30 | C49: 202502 | D49: 四川*****有限公司 | E49: 专票 | F49: 16.80 | G49: 1% | H49: 0.17 | I49: 16.97
A50: 49 | B50: 2025-03-05T08:55:48 | C50: 202514 | D50: 广元市***有限公司 | E50: 专票 | F50: 3.87 | G50: 1% | H50: 0.04 | I50: 3.91
A51: 50 | B51: 2025-03-20T09:56:14 | C51: 202515 | D51: 广元市***有限公司 | E51: 普票 | F51: 24.29 | G51: 1% | H51: 0.24 | I51: 24.53
A52: 51 | B52: 2025-04-02T15:34:16 | C52: 202516 | D52: 广元市***有限公司 | E52: 普票 | F52: 28.40 | G52: 1% | H52: 0.28 | I52: 28.68
A53: 52 | B53: 2025-04-11T14:15:35 | C53: 202517 | D53: 广元市***有限公司 | E53: 普票 | F53: 36.15 | G53: 1% | H53: 0.36 | I53: 36.51
A54: 53 | B54: 2025-04-29T16:23:15 | C54: 202518 | D54: 广元市***有限公司 | E54: 普票 | F54: 134.31 | G54: 1% | H54: 1.34 | I54: 135.65
A55: 54 | B55: 2025-04-29T16:30:05 | C55: 202519 | D55: 四川*****有限公司 | E55: 专票 | F55: 103.32 | G55: 1% | H55: 1.03 | I55: 104.35
A56: 55 | B56: 2025-04-29T16:30:47 | C56: 202520 | D56: 广元市***有限公司 | E56: 普票 | F56: 82.69 | G56: 1% | H56: 0.83 | I56: 83.52
A57: 56 | B57: 2025-05-16T14:30:00 | C57: 202521 | D57: 广元市***有限公司 | E57: 普票 | F57: 144.71 | G57: 1% | H57: 1.45 | I57: 146.16
A58: 57 | B58: 2025-06-06T09:37:11 | C58: 202506 | D58: 四川*****有限公司 | E58: 普票 | F58: 48.24 | G58: 1% | H58: 0.48 | I58: 48.72
A59: 58 | B59: 2025-06-06T09:37:22 | C59: 202506 | D59: 广元市***有限公司 | E59: 专票 | F59: 93.03 | G59: 1% | H59: 0.93 | I59: 93.96
A60: 59 | B60: 2025-06-06T09:37:54 | C60: 202506 | D60: 广元市***有限公司 | E60: 普票 | F60: 82.61 | G60: 1% | H60: 0.83 | I60: 83.44
A61: 60 | B61: 2025-06-06T09:38:18 | C61: 202506 | D61: 广元市***有限公司 | E61: 普票 | F61: 15.54 | G61: 1% | H61: 0.16 | I61: 15.70
A62: 61 | B62: 2025-06-06T14:50:15 | C62: 202506 | D62: 广元市***有限公司 | E62: 专票 | F62: 96.48 | G62: 1% | H62: 0.96 | I62: 97.44
A63: 62 | B63: 2025-06-09T09:38:34 | C63: 202506 | D63: 广元市***有限公司 | E63: 普票 | F63: 67.16 | G63: 1% | H63: 0.67 | I63: 67.83
A64: 63 | B64: 2025-06-09T09:39:22 | C64: 202506 | D64: 广元市***有限公司 | E64: 普票 | F64: 322.87 | G64: 1% | H64: 3.23 | I64: 326.10
A65: 64 | B65: 2025-06-09T09:39:38 | C65: 202506 | D65: 广元市***有限公司 | E65: 普票 | F65: 126.53 | G65: 1% | H65: 1.27 | I65: 127.80
A66: 65 | B66: 2025-06-09T09:40:02 | C66: 202506 | D66: 广元市***有限公司 | E66: 普票 | F66: 62.02 | G66: 1% | H66: 0.62 | I66: 62.64
A67: 66 | B67: 2025-06-09T10:03:01 | C67: 202506 | D67: 广元市***有限公司 | E67: 普票 | F67: 95.13 | G67: 1% | H67: 0.95 | I67: 96.08
A68: 67 | B68: 2025-06-09T10:03:18 | C68: 202506 | D68: 广元市***有限公司 | E68: 普票 | F68: 68.87 | G68: 1% | H68: 0.69 | I68: 69.56
A69: 68 | B69: 2025-06-10T17:57:07 | C69: 202506 | D69: 广元市***有限公司 | E69: 普票 | F69: 133.69 | G69: 1% | H69: 1.34 | I69: =+H69+F69 -> 135.03
A70: 69 | B70: 2025-06-13T14:26:32 | C70: 202506 | D70: 广元市***有限公司 | E70: 普票 | F70: 365.84 | G70: 1% | H70: 3.66 | I70: 369.50
A71: 70 | B71: 2025-06-18T10:58:00 | C71: 202506 | D71: 广元市***有限公司 | E71: 普票 | F71: 195.37 | G71: 1% | H71: 1.95 | I71: 197.32
A72: 71 | B72: 2025-06-20T09:38:36 | C72: 202506 | D72: 广元市***有限公司 | E72: 普票 | F72: 622.02 | G72: 1% | H72: 6.22 | I72: 628.24
A73: 72 | B73: 2025-06-20T09:38:50 | C73: 202506 | D73: 广元市***有限公司 | E73: 普票 | F73: 64.55 | G73: 1% | H73: 0.65 | I73: 65.20
A74: 73 | B74: 2025-07-10T15:52:07 | C74: 202507 | D74: 广元市***有限公司 | E74: 普票 | F74: 25.82 | G74: 1% | H74: 0.26 | I74: 26.08
A75: 74 | B75: 2025-07-21T09:05:20 | C75: 202507 | D75: 广元市***有限公司 | E75: 普票 | F75: 82.69 | G75: 1% | H75: 0.83 | I75: 83.52
A76: 75 | B76: 2025-08-04T15:33:18 | C76: 202508 | D76: 广元市***有限公司 | E76: 普票 | F76: 6.45 | G76: 1% | H76: 0.06 | I76: 6.51
A77: 76 | B77: 2025-08-19T09:22:24 | C77: 202508 | D77: 广元市***有限公司 | E77: 普票 | F77: 62.02 | G77: 1% | H77: =+F77*0.01 -> 0.62 | I77: 62.64
A78: 77 | B78: 2025-09-07T10:42:00 | C78: 202509 | D78: 广元市***有限公司 | E78: 普票 | F78: 38.74 | G78: 1% | H78: 0.39 | I78: 39.13
A79: 78 | B79: 2025-09-23T15:35:53 | C79: 202509 | D79: 四川*****有限公司 | E79: 普票 | F79: 111.21 | G79: 1% | H79: 1.11 | I79: 112.32
A80: 79 | B80: 2025-10-10T08:39:56 | C80: 202510 | D80: 广元市***有限公司 | E80: 普票 | F80: 98.02 | G80: 1% | H80: 0.98 | I80: 99.00
A81: 80 | B81: 2025-10-13T15:44:13 | C81: 202510 | D81: 广元市***有限公司 | E81: 普票 | F81: 6.45 | G81: 1% | H81: 0.06 | I81: 6.51
A82: 81 | B82: 2025-11-03T14:53:07 | C82: 202511 | D82: 广元市***有限公司 | E82: 普票 | F82: 28.83 | G82: 1% | H82: 0.29 | I82: 29.12
A83: 82 | B83: 2025-11-03T16:44:59 | C83: 202511 | D83: 广元市***有限公司 | E83: 普票 | F83: 21.88 | G83: 1% | H83: 0.22 | I83: 22.10
A84: 83 | B84: 2025-11-03T16:45:59 | C84: 202511 | D84: 广元市***有限公司 | E84: 普票 | F84: 40.28 | G84: 1% | H84: 0.40 | I84: 40.68
A85: 84 | B85: 2025-11-03T16:49:34 | C85: 202511 | D85: 四川*****有限公司 | E85: 普票 | F85: 12.92 | G85: 1% | H85: 0.13 | I85: 13.05
A86: 85 | B86: 2025-11-03T17:12:32 | C86: 202511 | D86: 广元市***有限公司 | E86: 专票 | F86: 4.48 | G86: 1% | H86: 0.04 | I86: 4.52
A87: 86 | B87: 2025-11-07T10:54:29 | C87: 202511 | D87: 广元市***有限公司 | E87: 普票 | F87: 1,162.28 | G87: 1% | H87: 11.62 | I87: 1,173.90
A88: 87 | B88: 2025-11-11T14:27:16 | C88: 202511 | D88: 四川*****有限公司 | E88: 专票 | F88: 54.36 | G88: 1% | H88: 0.54 | I88: 54.90
A89: 88 | B89: 2025-11-12T14:51:56 | C89: 202511 | D89: 广元市***有限公司 | E89: 普票 | F89: 604.52 | G89: 1% | H89: 6.05 | I89: 610.57
A90: 89 | B90: 2025-12-05T08:34:21 | C90: 202512 | D90: 广元市***有限公司 | E90: 普票 | F90: 2,413.36 | G90: 1% | H90: 24.13 | I90: 2,437.49
A91: 90 | B91: 2025-12-08T11:27:50 | C91: 202512 | D91: 广元市***有限公司 | E91: 专票 | F91: 260.32 | G91: 1% | H91: 2.60 | I91: 262.92
A92: 91 | B92: 2025-12-08T16:04:19 | C92: 202512 | D92: 广元市***有限公司 | E92: 普票 | F92: 74.94 | G92: 1% | H92: 0.75 | I92: 75.69
A93: 92 | B93: 2025-12-08T16:05:11 | C93: 202512 | D93: 广元市***有限公司 | E93: 普票 | F93: 558.87 | G93: 1% | H93: 5.59 | I93: 564.46
A94: 93 | B94: 2025-12-17T11:32:16 | C94: 202512 | D94: 广元市***有限公司 | E94: 普票 | F94: 193,492.77 | G94: 1% | H94: 1,934.93 | I94: 195,427.70
A95: 94 | B95: 2025-12-17T11:32:16 | C95: 202512 | D95: 广元市***有限公司 | E95: 专票 | F95: 195,833.52 | G95: 1% | H95: 1,958.34 | I95: 197,791.86
A96: 95 | B96: 2025-12-17T11:32:16 | C96: 202512 | D96: 四川*****有限公司 | E96: 普票 | F96: 950.50 | G96: 1% | H96: 9.51 | I96: 960.01
A97: 96 | B97: 2025-12-17T11:32:16 | C97: 202512 | D97: 广元市***有限公司 | E97: 普票 | F97: 6,237.62 | G97: 1% | H97: 62.38 | I97: 6,300.00
A98: 97 | B98: 2025-12-17T11:32:16 | C98: 202512 | D98: 广元市***有限公司 | E98: 普票 | F98: 11,287.13 | G98: 1% | H98: 112.87 | I98: 11,400.00
A99: 98 | B99: 2025-12-17T11:32:16 | C99: 202512 | D99: 广元市***有限公司 | E99: 普票 | F99: 1,014.85 | G99: 1% | H99: 10.15 | I99: 1,025.00
A100: 99 | B100: 2025-12-17T11:32:16 | C100: 202512 | D100: 广元市***有限公司 | E100: 专票 | F100: 5,940.59 | G100: 1% | H100: 59.41 | I100: 6,000.00
A101: 100 | B101: 2025-12-17T11:32:16 | C101: 202512 | D101: 广元市***有限公司 | E101: 专票 | F101: 5,940.59 | G101: 1% | H101: 59.41 | I101: =+H101+F101 -> 6,000.00
A102: 101 | B102: 2025-12-17T11:32:16 | C102: 202512 | D102: 广元市***有限公司 | E102: 普票 | F102: 1,149.50 | G102: 1% | H102: 11.50 | I102: 1,161.00
A103: 102 | B103: 2025-12-17T11:32:16 | C103: 202512 | D103: 广元市***有限公司 | E103: 普票 | F103: 317,049.11 | G103: 1% | H103: 3,170.49 | I103: 320,219.60
A104: 103 | B104: 2025-12-17T11:32:16 | C104: 202512 | D104: 广元市***有限公司 | E104: 普票 | F104: 1,182.67 | G104: 1% | H104: 11.83 | I104: 1,194.50
A105: 104 | B105: 2025-12-17T11:32:16 | C105: 202512 | D105: 广元市***有限公司 | E105: 专票 | F105: 219,460.67 | G105: 1% | H105: 2,194.61 | I105: 221,655.28
A106: 105 | B106: 2025-12-17T11:32:16 | C106: 202512 | D106: 广元市***有限公司 | E106: 普票 | F106: 1,171.78 | G106: 1% | H106: 11.72 | I106: 1,183.50
A107: 106 | B107: 2025-12-17T11:32:16 | C107: 202512 | D107: 广元市***有限公司 | E107: 普票 | F107: 211,088.20 | G107: 1% | H107: 2,110.88 | I107: 213,199.08
A108: 107 | B108: 2025-12-17T11:32:16 | C108: 202512 | D108: 广元市***有限公司 | E108: 专票 | F108: 1,765.35 | G108: 1% | H108: 17.65 | I108: 1,783.00
A109: 108 | B109: 2025-12-17T11:32:16 | C109: 202512 | D109: 广元市***有限公司 | E109: 专票 | F109: 338,976.53 | G109: 1% | H109: =+F109*0.01 -> 3,389.77 | I109: 342,366.30
A110: 109 | B110: 2025-12-17T11:32:16 | C110: 202512 | D110: 广元市***有限公司 | E110: 普票 | F110: 265.35 | G110: 1% | H110: 2.65 | I110: 268.00
A111: 110 | B111: 2025-12-17T11:32:16 | C111: 202512 | D111: 四川*****有限公司 | E111: 普票 | F111: 618.81 | G111: 1% | H111: 6.19 | I111: 625.00
A112: 111 | B112: 2025-12-17T11:32:16 | C112: 202512 | D112: 四川*****有限公司 | E112: 普票 | F112: 618.81 | G112: 1% | H112: 6.19 | I112: 625.00
A113: 112 | B113: 2025-12-17T11:32:16 | C113: 202512 | D113: 广元市***有限公司 | E113: 普票 | F113: 207.92 | G113: 1% | H113: 2.08 | I113: 210.00
A114: 113 | B114: 2025-12-17T11:32:16 | C114: 202512 | D114: 广元市***有限公司 | E114: 普票 | F114: 208,468.90 | G114: 1% | H114: 2,084.69 | I114: 210,553.59
A115: 114 | B115: 2025-12-17T11:32:16 | C115: 202512 | D115: 广元市***有限公司 | E115: 普票 | F115: 207.92 | G115: 1% | H115: 2.08 | I115: 210.00
A116: 115 | B116: 2025-12-17T11:32:16 | C116: 202512 | D116: 广元市***有限公司 | E116: 普票 | F116: -79.21 | G116: 1% | H116: -0.79 | I116: -80.00
A117: 116 | B117: 2025-12-17T11:32:16 | C117: 202512 | D117: 广元市***有限公司 | E117: 普票 | F117: 178.22 | G117: 1% | H117: 1.78 | I117: 180.00
A118: 117 | B118: 2025-12-17T11:32:16 | C118: 202512 | D118: 广元市***有限公司 | E118: 普票 | F118: 207.92 | G118: 1% | H118: 2.08 | I118: 210.00
A119: 118 | B119: 2025-12-17T11:32:16 | C119: 202512 | D119: 广元市***有限公司 | E119: 普票 | F119: 207.92 | G119: 1% | H119: 2.08 | I119: 210.00
A120: 119 | B120: 2025-12-17T11:32:16 | C120: 202512 | D120: 广元市***有限公司 | E120: 普票 | F120: 79.21 | G120: 1% | H120: 0.79 | I120: 80.00
A121: 120 | B121: 2025-12-17T11:32:16 | C121: 202512 | D121: 四川*****有限公司 | E121: 普票 | F121: 395.05 | G121: 1% | H121: 3.95 | I121: 399.00
A122: 121 | B122: 2025-12-17T11:32:16 | C122: 202512 | D122: 广元市***有限公司 | E122: 普票 | F122: 1,014.85 | G122: 1% | H122: 10.15 | I122: 1,025.00
A123: 122 | B123: 2025-12-17T11:32:16 | C123: 202512 | D123: 广元市***有限公司 | E123: 普票 | F123: 827.23 | G123: 1% | H123: 8.27 | I123: =+H123+F123 -> 835.50
A124: 123 | B124: 2025-12-17T11:32:16 | C124: 202512 | D124: 广元市***有限公司 | E124: 普票 | F124: 218,379.30 | G124: 1% | H124: 2,183.79 | I124: 220,563.09
A125: 124 | B125: 2025-12-17T11:32:16 | C125: 202512 | D125: 四川*****有限公司 | E125: 普票 | F125: 336,599.70 | G125: 1% | H125: 3,366.00 | I125: 339,965.70
A126: 125 | B126: 2025-12-17T11:32:16 | C126: 202512 | D126: 广元市***有限公司 | E126: 普票 | F126: 99,252.08 | G126: 1% | H126: 992.52 | I126: 100,244.60
A127: 126 | B127: 2025-12-17T11:32:16 | C127: 202512 | D127: 广元市***有限公司 | E127: 普票 | F127: 105,274.26 | G127: 1% | H127: 1,052.74 | I127: 106,327.00
A128: 127 | B128: 2026-01-01 | C128: 202601 | D128: 广元市***有限公司 | E128: 普票 | F128: 6,666.66 | G128: 1% | H128: 66.67 | I128: 6,733.33
A129: 128
A130: 129
A131: 130
A132: 131
A133: 132
A134: 133
A135: 134
A136: 135
A137: 136
A139: 下拉 | B139: 填写 | C139: 填写 | D139: 填写 | E139: 填写 | F139: 填写 | G139: 下拉 | H139: 下拉 | I139: 下拉
C142: 手动将年月日改成年月格式 如2026-1-1日开票将年月写为 202601
